[Event "GrandPrix_29.05"]
[Site "Chess.com"]
[Date "2020.05.29"]
[Round "1"]
[White "ChessQueen"]
[Black "ZefirKa"]
[Result "1-0"]
[WhiteElo "2610"]
[BlackElo "2155"]
[TimeControl "600+2"]
[EndTime "9:24:12 PDT"]
[Termination "ChessQueen won on time"]

1. e4 {[%clk 0:10:00.8]} 1... c6 {[%clk 0:09:57]} 2. c4 {[%clk 0:10:00.9]} 2...
d5 {[%clk 0:09:56.6]} 3. cxd5 {[%clk 0:10:01]} 3... cxd5 {[%clk 0:09:57.3]} 4.
exd5 {[%clk 0:10:02]} 4... Nf6 {[%clk 0:09:54.7]} 5. Nc3 {[%clk 0:09:59.9]} 5...
Nxd5 {[%clk 0:09:50.7]} 6. Nf3 {[%clk 0:09:28.5]} 6... Nc6 {[%clk 0:09:50.9]} 7.
Bb5 {[%clk 0:09:13.5]} 7... e6 {[%clk 0:08:57.2]} 8. Qa4 {[%clk 0:08:23.6]} 8...
Qd6 {[%clk 0:07:39.4]} 9. O-O {[%clk 0:07:24.2]} 9... Bd7 {[%clk 0:07:04.8]} 10.
Qg4 {[%clk 0:06:11.7]} 10... Nf6 {[%clk 0:06:51]} 11. Qh4 {[%clk 0:05:55.2]}
11... Be7 {[%clk 0:06:39.4]} 12. d4 {[%clk 0:05:55.8]} 12... Nd5 {[%clk
0:06:12.4]} 13. Qe4 {[%clk 0:05:31.6]} 13... Nf6 {[%clk 0:05:38.5]} 14. Qh4
{[%clk 0:05:16.1]} 14... Nd5 {[%clk 0:05:38.9]} 15. Bg5 {[%clk 0:05:11.4]} 15...
Bxg5 {[%clk 0:05:30.2]} 16. Qxg5 {[%clk 0:05:10.9]} 16... Nxc3 {[%clk
0:05:03.3]} 17. bxc3 {[%clk 0:05:10.4]} 17... O-O {[%clk 0:04:59.1]} 18. Rfe1
{[%clk 0:04:52.3]} 18... Ne7 {[%clk 0:04:52.1]} 19. Bd3 {[%clk 0:04:49.1]} 19...
Ng6 {[%clk 0:04:26.6]} 20. Qh5 {[%clk 0:03:48.2]} 20... Qf4 {[%clk 0:03:16]} 21.
Ne5 {[%clk 0:03:34.4]} 21... Bc6 {[%clk 0:03:07.8]} 22. Re3 {[%clk 0:03:34.2]}
22... Qh6 {[%clk 0:02:41.5]} 23. Qxh6 {[%clk 0:03:22.4]} 23... gxh6 {[%clk
0:02:43.4]} 24. Nxc6 {[%clk 0:02:50.8]} 24... bxc6 {[%clk 0:02:45.3]} 25. Be4
{[%clk 0:02:51]} 25... Rac8 {[%clk 0:02:33.2]} 26. g3 {[%clk 0:02:40.1]} 26...
Rfd8 {[%clk 0:02:19]} 27. Rd1 {[%clk 0:02:16.9]} 27... Ne7 {[%clk 0:01:55.1]}
28. c4 {[%clk 0:02:13.8]} 28... Rc7 {[%clk 0:01:49.5]} 29. Red3 {[%clk
0:02:08.8]} 29... Rcd7 {[%clk 0:01:50.6]} 30. Kf1 {[%clk 0:02:03.3]} 30... Kg7
{[%clk 0:01:50.9]} 31. Ke2 {[%clk 0:02:03.7]} 31... Kf6 {[%clk 0:01:44.5]} 32.
Bxh7 {[%clk 0:01:56.7]} 32... Rb8 {[%clk 0:01:19.1]} 33. a3 {[%clk 0:01:45.8]}
33... Rb2+ {[%clk 0:00:58.5]} 34. R1d2 {[%clk 0:01:45.9]} 34... Rb6 {[%clk
0:00:51.7]} 35. Be4 {[%clk 0:01:42.6]} 35... Ra6 {[%clk 0:00:52.1]} 36. Rb2
{[%clk 0:01:27.4]} 36... Ra5 {[%clk 0:00:30.7]} 37. f4 {[%clk 0:01:25]} 37...
Ra4 {[%clk 0:00:20.7]} 38. Rb4 {[%clk 0:01:25.3]} 38... Ra6 {[%clk 0:00:21.9]}
39. Ke3 {[%clk 0:01:20.7]} 39... Nc8 {[%clk 0:00:22.8]} 40. g4 {[%clk
0:01:03.2]} 40... Nd6 {[%clk 0:00:22.9]} 41. h4 {[%clk 0:01:02.6]} 41... Nxe4
{[%clk 0:00:09.9]} 42. Kxe4 {[%clk 0:01:04.5]} 42... c5 {[%clk 0:00:11.4]} 43.
dxc5 {[%clk 0:01:04.2]} 43... Rxd3 {[%clk 0:00:12.4]} 44. Kxd3 {[%clk
0:01:06.1]} 44... Rxa3+ {[%clk 0:00:13.3]} 45. Ke4 {[%clk 0:01:04.4]} 45... Ra6
{[%clk 0:00:06.8]} 46. g5+ {[%clk 0:01:02.8]} 46... hxg5 {[%clk 0:00:07.6]} 47.
hxg5+ {[%clk 0:00:56.5]} 47... Kg6 {[%clk 0:00:07.1]} 48. Rb8 {[%clk 0:00:58]}
48... Rc6 {[%clk 0:00:07.9]} 49. Kd4 {[%clk 0:00:50.9]} 49... Rc7 {[%clk
0:00:09.1]} 50. Rd8 {[%clk 0:00:39.6]} 50... Kf5 {[%clk 0:00:09.9]} 51. Rd6
{[%clk 0:00:40.6]} 51... Kxf4 {[%clk 0:00:09.9]} 52. c6 {[%clk 0:00:41.4]} 52...
Kxg5 {[%clk 0:00:08]} 53. Kc5 {[%clk 0:00:42.7]} 1-0

[Event "GrandPrix_29.05"]
[Site "Chess.com"]
[Date "2020.05.29"]
[Round "1"]
[White "klimkoj"]
[Black "Oleksandr_Bortnyk"]
[Result "1-0"]
[WhiteElo "2094"]
[BlackElo "2254"]
[TimeControl "600+2"]
[EndTime "9:24:12 PDT"]
[Termination "klimkoj won by resignation"]

1. e4 {[%clk 0:10:01.1]} 1... Nf6 {[%clk 0:09:41.7]} 2. e5 {[%clk 0:10:00.3]}
2... Nd5 {[%clk 0:09:33.6]} 3. c4 {[%clk 0:10:00.8]} 3... Nb6 {[%clk 0:09:23.9]}
4. c5 {[%clk 0:10:00.3]} 4... Nd5 {[%clk 0:09:23.6]} 5. Nc3 {[%clk 0:09:59.3]}
5... e6 {[%clk 0:09:23.6]} 6. Qg4 {[%clk 0:09:58.8]} 6... d6 {[%clk 0:08:36.3]}
7. cxd6 {[%clk 0:09:32.5]} 7... cxd6 {[%clk 0:08:30.8]} 8. exd6 {[%clk
0:09:17.4]} 8... Nc6 {[%clk 0:08:10.2]} 9. Nf3 {[%clk 0:08:58.2]} 9... h5 {[%clk
0:07:52.5]} 10. Qe4 {[%clk 0:08:32.9]} 10... Nf6 {[%clk 0:07:34.9]} 11. Qc2
{[%clk 0:07:51.7]} 11... Bxd6 {[%clk 0:07:23.1]} 12. Bb5 {[%clk 0:07:50.1]}
12... Bd7 {[%clk 0:07:18.4]} 13. O-O {[%clk 0:07:49.1]} 13... a6 {[%clk
0:07:18.4]} 14. Be2 {[%clk 0:07:21.9]} 14... g5 {[%clk 0:06:34.7]} 15. Nxg5
{[%clk 0:06:27.2]} 15... Bxh2+ {[%clk 0:06:31.2]} 16. Kh1 {[%clk 0:06:26.4]}
16... Ng4 {[%clk 0:06:21.2]} 17. Nh3 {[%clk 0:05:08.8]} 17... Nd4 {[%clk
0:06:15.7]} 18. Qd3 {[%clk 0:05:04.1]} 18... Nxe2 {[%clk 0:06:15.1]} 19. Qxe2
{[%clk 0:05:01.1]} 19... Bc6 {[%clk 0:06:14.4]} 20. f3 {[%clk 0:04:36.8]} 20...
Bc7 {[%clk 0:05:57.8]} 21. d4 {[%clk 0:03:58.8]} 21... Qxd4 {[%clk 0:05:42.2]}
22. Re1 {[%clk 0:03:22.5]} 22... O-O-O {[%clk 0:05:25.6]} 23. Bg5 {[%clk
0:03:10.8]} 23... Rdg8 {[%clk 0:05:12.7]} 24. Rad1 {[%clk 0:02:38.8]} 24... Qg7
{[%clk 0:04:33.4]} 25. Ne4 {[%clk 0:02:13.4]} 25... Bxe4 {[%clk 0:04:29]} 26.
fxe4 {[%clk 0:02:01.8]} 26... Kb8 {[%clk 0:04:06.7]} 27. Rd7 {[%clk 0:01:56.8]}
27... Rc8 {[%clk 0:03:40.1]} 28. Qf3 {[%clk 0:01:40]} 28... Ne5 {[%clk
0:03:32.8]} 29. Qc3 {[%clk 0:01:30.5]} 29... Bd6 {[%clk 0:02:45.3]} 30. Qd2
{[%clk 0:00:58.6]} 30... Nxd7 {[%clk 0:02:30.9]} 31. Qxd6+ {[%clk 0:00:58.3]}
31... Rc7 {[%clk 0:02:32.8]} 32. Rc1 {[%clk 0:00:54.6]} 32... Rc8 {[%clk
0:02:33.1]} 33. Rxc7 {[%clk 0:00:39.4]} 33... Rxc7 {[%clk 0:02:34.1]} 34. Bd8
{[%clk 0:00:40.2]} 34... Ka7 {[%clk 0:02:10.9]} 35. Bxc7 {[%clk 0:00:40]} 35...
f5 {[%clk 0:02:07.8]} 36. Qxe6 {[%clk 0:00:39.4]} 36... fxe4 {[%clk 0:01:57.4]}
37. Qxe4 {[%clk 0:00:39.5]} 37... Qxb2 {[%clk 0:01:58.3]} 38. Qe3+ {[%clk
0:00:37.7]} 38... b6 {[%clk 0:01:59.6]} 39. Bf4 {[%clk 0:00:33.6]} 39... Qxa2
{[%clk 0:01:57.4]} 40. Qc3 {[%clk 0:00:27.2]} 40... Qd5 {[%clk 0:01:50.6]} 41.
Qc7+ {[%clk 0:00:24.8]} 41... Qb7 {[%clk 0:01:51.8]} 42. Qd6 {[%clk 0:00:26.1]}
42... Nc5 {[%clk 0:01:40.4]} 43. Ng5 {[%clk 0:00:25.6]} 43... a5 {[%clk
0:01:41.8]} 44. Be3 {[%clk 0:00:23.7]} 44... Na6 {[%clk 0:01:12.4]} 45. Ne6
{[%clk 0:00:18.8]} 45... a4 {[%clk 0:01:12.9]} 46. Nd4 {[%clk 0:00:19.9]} 46...
Nc5 {[%clk 0:00:43.9]} 47. Nc6+ {[%clk 0:00:18.6]} 47... Ka6 {[%clk 0:00:45.3]}
48. Nd8 {[%clk 0:00:16.3]} 48... Qc8 {[%clk 0:00:37.2]} 49. Nc6 {[%clk
0:00:17.6]} 49... Qf5 {[%clk 0:00:31.3]} 50. Nb4+ {[%clk 0:00:12.2]} 50... Kb5
{[%clk 0:00:31.8]} 51. Nd5 {[%clk 0:00:13.4]} 51... Qe6 {[%clk 0:00:24.7]} 52.
Nc7+ {[%clk 0:00:13.9]} 52... Kc4 {[%clk 0:00:23.9]} 53. Nxe6 {[%clk 0:00:15.1]}
1-0

[Event "GrandPrix_29.05"]
[Site "Chess.com"]
[Date "2020.05.29"]
[Round "1"]
[White "larrylarsen"]
[Black "DaggiGretarsson"]
[Result "0-1"]
[WhiteElo "1195"]
[BlackElo "2221"]
[TimeControl "600+2"]
[EndTime "9:24:17 PDT"]
[Termination "DaggiGretarsson won on time"]

1. d4 {[%clk 0:09:51.6]} 1... g6 {[%clk 0:10:00.1]} 2. e4 {[%clk 0:09:39.6]}
2... Bg7 {[%clk 0:10:00.7]} 3. Nf3 {[%clk 0:09:30.5]} 3... d6 {[%clk 0:09:59.6]}
4. Bc4 {[%clk 0:09:13.6]} 4... Nf6 {[%clk 0:09:44.5]} 5. Qe2 {[%clk 0:09:09.6]}
5... O-O {[%clk 0:09:44.6]} 6. O-O {[%clk 0:08:41.1]} 6... Bg4 {[%clk
0:09:12.7]} 7. Nbd2 {[%clk 0:08:27.5]} 7... Nc6 {[%clk 0:09:09]} 8. c3 {[%clk
0:08:20.1]} 8... e5 {[%clk 0:09:08]} 9. h3 {[%clk 0:07:33.5]} 9... Bd7 {[%clk
0:09:02.8]} 10. Rd1 {[%clk 0:06:56.3]} 10... Qe7 {[%clk 0:07:25.2]} 11. dxe5
{[%clk 0:06:16.3]} 11... Nxe5 {[%clk 0:07:23.8]} 12. Bb3 {[%clk 0:05:59.7]}
12... Nxf3+ {[%clk 0:07:09.5]} 13. Qxf3 {[%clk 0:05:57.5]} 13... Bc6 {[%clk
0:06:50.5]} 14. Bd5 {[%clk 0:05:35.8]} 14... Bxd5 {[%clk 0:06:32.4]} 15. exd5
{[%clk 0:05:35.3]} 15... Rae8 {[%clk 0:06:33.1]} 16. Nf1 {[%clk 0:05:20.3]}
16... Qe2 {[%clk 0:06:25.7]} 17. Qxe2 {[%clk 0:03:51.3]} 17... Rxe2 {[%clk
0:06:24.2]} 18. Ne3 {[%clk 0:03:16.6]} 18... Ne4 {[%clk 0:06:19.6]} 19. Rf1
{[%clk 0:02:27.5]} 19... Re8 {[%clk 0:05:51]} 20. a4 {[%clk 0:02:15.6]} 20...
Nc5 {[%clk 0:05:16.5]} 21. Rd1 {[%clk 0:01:52.4]} 21... Nb3 {[%clk 0:04:55]} 22.
Rb1 {[%clk 0:01:51.5]} 22... Bh6 {[%clk 0:04:44.3]} 23. Kf1 {[%clk 0:01:43.3]}
23... Nxc1 {[%clk 0:04:38.7]} 24. Rdxc1 {[%clk 0:01:35.9]} 24... Bxe3 {[%clk
0:04:37.3]} 25. fxe3 {[%clk 0:01:35.9]} 25... R8xe3 {[%clk 0:03:55.6]} 26. Rd1
{[%clk 0:00:52]} 26... Rc2 {[%clk 0:03:24.7]} 27. Re1 {[%clk 0:00:42.4]} 27...
Rxe1+ {[%clk 0:03:20.7]} 28. Rxe1 {[%clk 0:00:41.9]} 28... Kf8 {[%clk
0:03:21.5]} 29. Re4 {[%clk 0:00:42]} 29... Rxb2 {[%clk 0:00:46.9]} 30. Rc4
{[%clk 0:00:41.5]} 30... a5 {[%clk 0:00:25.4]} 31. Rxc7 {[%clk 0:00:41]} 31...
b5 {[%clk 0:00:23.4]} 32. axb5 {[%clk 0:00:33.5]} 32... Rxb5 {[%clk 0:00:23.6]}
33. c4 {[%clk 0:00:33.4]} 33... Rc5 {[%clk 0:00:23.1]} 34. Rd7 {[%clk
0:00:33.1]} 34... a4 {[%clk 0:00:18.7]} 35. Rxd6 {[%clk 0:00:27.4]} 35... Ra5
{[%clk 0:00:19.4]} 36. Rb6 {[%clk 0:00:24.1]} 36... a3 {[%clk 0:00:19.7]} 37.
Rb1 {[%clk 0:00:24.5]} 37... a2 {[%clk 0:00:20.5]} 38. Ra1 {[%clk 0:00:24.9]}
38... Ke7 {[%clk 0:00:21.7]} 39. Ke2 {[%clk 0:00:25.2]} 39... Kd6 {[%clk
0:00:22.7]} 40. Kd3 {[%clk 0:00:24.8]} 40... Kc5 {[%clk 0:00:23.9]} 41. Kc3
{[%clk 0:00:20.9]} 41... Ra3+ {[%clk 0:00:23.9]} 42. Kb2 {[%clk 0:00:18.8]}
42... Rg3 {[%clk 0:00:23.8]} 43. Rxa2 {[%clk 0:00:14.3]} 43... Rxg2+ {[%clk
0:00:24.5]} 44. Kb3 {[%clk 0:00:15]} 44... Rxa2 {[%clk 0:00:24.8]} 45. Kxa2
{[%clk 0:00:15.3]} 45... g5 {[%clk 0:00:25.8]} 46. Kb2 {[%clk 0:00:15.6]} 46...
h5 {[%clk 0:00:26.9]} 47. Kc2 {[%clk 0:00:15.4]} 47... g4 {[%clk 0:00:28.1]} 48.
hxg4 {[%clk 0:00:09.9]} 48... h4 {[%clk 0:00:28.9]} 49. Kd3 {[%clk 0:00:09.3]}
49... h3 {[%clk 0:00:30]} 50. Ke4 {[%clk 0:00:10.3]} 50... h2 {[%clk 0:00:31.1]}
51. Kf5 {[%clk 0:00:10.9]} 51... h1=Q {[%clk 0:00:31.5]} 0-1

[Event "GrandPrix_29.05"]
[Site "Chess.com"]
[Date "2020.05.29"]
[Round "1"]
[White "Chessbuster123"]
[Black "Yaroslav_Remizov"]
[Result "0-1"]
[WhiteElo "2005"]
[BlackElo "2434"]
[TimeControl "600+2"]
[EndTime "9:24:18 PDT"]
[Termination "Yaroslav_Remizov won by checkmate"]

1. d4 {[%clk 0:09:56.6]} 1... d5 {[%clk 0:10:00.2]} 2. c4 {[%clk 0:09:56.9]}
2... c6 {[%clk 0:09:58.1]} 3. cxd5 {[%clk 0:09:57.5]} 3... cxd5 {[%clk
0:09:58.8]} 4. Nc3 {[%clk 0:09:58.8]} 4... Nf6 {[%clk 0:09:59.1]} 5. Bf4 {[%clk
0:09:59.7]} 5... e6 {[%clk 0:09:40.4]} 6. e3 {[%clk 0:09:58]} 6... Bd6 {[%clk
0:09:40.7]} 7. Bxd6 {[%clk 0:09:25.5]} 7... Qxd6 {[%clk 0:09:42.6]} 8. Bd3
{[%clk 0:09:26.3]} 8... O-O {[%clk 0:09:40.6]} 9. f4 {[%clk 0:09:26.4]} 9... b6
{[%clk 0:09:11.8]} 10. Nf3 {[%clk 0:08:56.6]} 10... Ba6 {[%clk 0:09:12.3]} 11.
O-O {[%clk 0:08:58.1]} 11... Bxd3 {[%clk 0:09:11.8]} 12. Qxd3 {[%clk 0:09:00]}
12... Nc6 {[%clk 0:08:59.8]} 13. Ne5 {[%clk 0:08:58.2]} 13... Rfc8 {[%clk
0:08:39.2]} 14. Rf3 {[%clk 0:08:04.9]} 14... Nb4 {[%clk 0:07:04.3]} 15. Qb1
{[%clk 0:07:51.2]} 15... g6 {[%clk 0:04:42.5]} 16. g4 {[%clk 0:07:39.6]} 16...
Rc7 {[%clk 0:03:22.2]} 17. Nb5 {[%clk 0:07:04.1]} 17... Qd8 {[%clk 0:03:13.6]}
18. Nxc7 {[%clk 0:07:00.5]} 18... Qxc7 {[%clk 0:03:15.5]} 19. Qc1 {[%clk
0:06:55.6]} 19... Nc2 {[%clk 0:02:59.3]} 20. Rb1 {[%clk 0:06:22.9]} 20... Rc8
{[%clk 0:02:26]} 21. g5 {[%clk 0:05:25.1]} 21... Ne4 {[%clk 0:01:48.8]} 22. Qd1
{[%clk 0:04:58.6]} 22... Nb4 {[%clk 0:00:33.8]} 23. a3 {[%clk 0:04:48]} 23...
Nc6 {[%clk 0:00:34.8]} 24. Ng4 {[%clk 0:03:57]} 24... Ne7 {[%clk 0:00:31.7]} 25.
Rf1 {[%clk 0:03:46.9]} 25... Qd7 {[%clk 0:00:26.2]} 26. Rc1 {[%clk 0:03:42.3]}
26... Rxc1 {[%clk 0:00:25.9]} 27. Qxc1 {[%clk 0:03:44.2]} 27... Kg7 {[%clk
0:00:26.6]} 28. Ne5 {[%clk 0:03:29.5]} 28... Qd6 {[%clk 0:00:07.4]} 29. Re1
{[%clk 0:03:08.1]} 29... Nf5 {[%clk 0:00:05.5]} 30. Qc8 {[%clk 0:02:52.2]} 30...
Qe7 {[%clk 0:00:06.5]} 31. Rc1 {[%clk 0:02:34.7]} 31... Nfd6 {[%clk 0:00:03.6]}
32. Qc7 {[%clk 0:02:20.2]} 32... Qe8 {[%clk 0:00:04.7]} 33. Qxa7 {[%clk
0:01:48.2]} 33... h6 {[%clk 0:00:05.7]} 34. h4 {[%clk 0:01:33.9]} 34... hxg5
{[%clk 0:00:06.8]} 35. hxg5 {[%clk 0:01:35]} 35... Qb5 {[%clk 0:00:03.7]} 36.
Rc7 {[%clk 0:01:33.8]} 36... Qe8 {[%clk 0:00:04.8]} 37. Re7 {[%clk 0:01:32.7]}
37... Qg8 {[%clk 0:00:04.6]} 38. Rxe6 {[%clk 0:01:09.5]} 38... Qc8 {[%clk
0:00:05.3]} 39. Rxg6+ {[%clk 0:01:02.3]} 39... Kh7 {[%clk 0:00:06.2]} 40. Rh6+
{[%clk 0:00:42.9]} 40... Kg7 {[%clk 0:00:06.4]} 41. Rg6+ {[%clk 0:00:19.1]}
41... Kh7 {[%clk 0:00:07.4]} 42. Rh6+ {[%clk 0:00:14.9]} 42... Kg8 {[%clk
0:00:08.1]} 43. g6 {[%clk 0:00:05.3]} 43... Qc1+ {[%clk 0:00:08]} 44. Kg2 {[%clk
0:00:06]} 44... Qd2+ {[%clk 0:00:08.8]} 45. Kh1 {[%clk 0:00:02.7]} 45... Qe1+
{[%clk 0:00:09.2]} 46. Kh2 {[%clk 0:00:03.5]} 46... Qg3+ {[%clk 0:00:10.3]} 47.
Kh1 {[%clk 0:00:04.1]} 47... Nf2# {[%clk 0:00:12.2]} 0-1

[Event "GrandPrix_29.05"]
[Site "Chess.com"]
[Date "2020.05.29"]
[Round "1"]
[White "tacticthunder"]
[Black "etserga"]
[Result "1-0"]
[WhiteElo "2191"]
[BlackElo "2114"]
[TimeControl "600+2"]
[EndTime "9:24:19 PDT"]
[Termination "tacticthunder won on time"]

1. e4 {[%clk 0:09:59.1]} 1... c6 {[%clk 0:08:35.1]} 2. d4 {[%clk 0:09:57.5]}
2... d5 {[%clk 0:08:34.7]} 3. Nd2 {[%clk 0:09:58.7]} 3... dxe4 {[%clk 0:08:35]}
4. Nxe4 {[%clk 0:10:00.6]} 4... Nf6 {[%clk 0:08:35.6]} 5. Nxf6+ {[%clk
0:10:01.4]} 5... exf6 {[%clk 0:08:35.8]} 6. c3 {[%clk 0:10:01.6]} 6... Bd6
{[%clk 0:08:33]} 7. Bd3 {[%clk 0:10:02.5]} 7... O-O {[%clk 0:08:30.9]} 8. Ne2
{[%clk 0:10:03.8]} 8... Re8 {[%clk 0:08:25.9]} 9. Qc2 {[%clk 0:10:04.4]} 9... h5
{[%clk 0:08:24.1]} 10. Be3 {[%clk 0:09:32.5]} 10... Be6 {[%clk 0:08:11.8]} 11.
O-O {[%clk 0:09:16.7]} 11... Qc7 {[%clk 0:07:58]} 12. h3 {[%clk 0:09:16]} 12...
Nd7 {[%clk 0:07:42.7]} 13. Qd2 {[%clk 0:08:59.8]} 13... f5 {[%clk 0:06:57.5]}
14. Bf4 {[%clk 0:08:23.9]} 14... Nf6 {[%clk 0:06:26.9]} 15. Bxd6 {[%clk
0:07:10.9]} 15... Qxd6 {[%clk 0:06:25.1]} 16. Qf4 {[%clk 0:06:46.2]} 16... Qxf4
{[%clk 0:05:58.7]} 17. Nxf4 {[%clk 0:06:48.1]} 17... Bd7 {[%clk 0:05:58.6]} 18.
h4 {[%clk 0:06:02.4]} 18... g6 {[%clk 0:05:54.6]} 19. Rfe1 {[%clk 0:05:59.6]}
19... Kg7 {[%clk 0:05:52.2]} 20. f3 {[%clk 0:05:56.5]} 20... Kf8 {[%clk
0:04:49.8]} 21. Kf2 {[%clk 0:05:40.5]} 21... Rad8 {[%clk 0:04:44.9]} 22. Bc4
{[%clk 0:05:08.4]} 22... Bc8 {[%clk 0:04:19.3]} 23. b4 {[%clk 0:04:21.7]} 23...
Rxe1 {[%clk 0:04:14.2]} 24. Rxe1 {[%clk 0:04:19.4]} 24... Ne8 {[%clk 0:04:14.7]}
25. a4 {[%clk 0:04:05.2]} 25... Nd6 {[%clk 0:04:09.6]} 26. Bb3 {[%clk 0:04:02]}
26... b6 {[%clk 0:03:56.6]} 27. Nd3 {[%clk 0:03:52.7]} 27... Bb7 {[%clk
0:03:45.5]} 28. Ne5 {[%clk 0:03:35.1]} 28... f4 {[%clk 0:03:01.9]} 29. Bc2
{[%clk 0:02:20]} 29... a5 {[%clk 0:01:20]} 30. bxa5 {[%clk 0:02:13.1]} 30...
bxa5 {[%clk 0:01:18.1]} 31. Rb1 {[%clk 0:01:42.5]} 31... Ba6 {[%clk 0:01:03]}
32. Rb6 {[%clk 0:01:37.8]} 32... Bb7 {[%clk 0:00:53.9]} 33. Bb3 {[%clk
0:01:26.4]} 33... Ba8 {[%clk 0:00:41.5]} 34. Ra6 {[%clk 0:01:00.1]} 34... Bb7
{[%clk 0:00:40]} 35. Rxa5 {[%clk 0:00:37]} 35... Kg7 {[%clk 0:00:35.9]} 36. Ra7
{[%clk 0:00:35.5]} 36... Rb8 {[%clk 0:00:33.2]} 37. Nd7 {[%clk 0:00:28.8]} 37...
Re8 {[%clk 0:00:32.5]} 38. a5 {[%clk 0:00:21.7]} 38... Bc8 {[%clk 0:00:28.2]}
39. Ne5 {[%clk 0:00:20.7]} 39... c5 {[%clk 0:00:14]} 40. Bxf7 {[%clk 0:00:14.8]}
40... Rxe5 {[%clk 0:00:11.4]} 41. Bd5+ {[%clk 0:00:09.6]} 41... Kf6 {[%clk
0:00:11.5]} 42. dxe5+ {[%clk 0:00:10]} 42... Kxe5 {[%clk 0:00:12.6]} 43. c4
{[%clk 0:00:11.9]} 43... Bf5 {[%clk 0:00:11.6]} 44. a6 {[%clk 0:00:11.7]} 44...
Bc8 {[%clk 0:00:11.4]} 45. Ra8 {[%clk 0:00:12.3]} 45... Kd4 {[%clk 0:00:12.3]}
46. a7 {[%clk 0:00:12.9]} 46... Ba6 {[%clk 0:00:10.8]} 47. Rd8 {[%clk
0:00:12.9]} 1-0

[Event "GrandPrix_29.05"]
[Site "Chess.com"]
[Date "2020.05.29"]
[Round "1"]
[White "Karinaa87"]
[Black "Luq27"]
[Result "0-1"]
[WhiteElo "2032"]
[BlackElo "2170"]
[TimeControl "600+2"]
[EndTime "9:24:19 PDT"]
[Termination "Luq27 won by resignation"]

1. d4 {[%clk 0:09:58.7]} 1... Nf6 {[%clk 0:10:00.2]} 2. c4 {[%clk 0:09:57.2]}
2... e6 {[%clk 0:10:01.2]} 3. Nf3 {[%clk 0:09:55.8]} 3... b6 {[%clk 0:09:58.8]}
4. g3 {[%clk 0:09:55.9]} 4... Bb4+ {[%clk 0:09:58.7]} 5. Bd2 {[%clk 0:09:55.2]}
5... Be7 {[%clk 0:09:47.1]} 6. Bg2 {[%clk 0:09:47.9]} 6... c6 {[%clk 0:09:31.8]}
7. O-O {[%clk 0:09:40.4]} 7... O-O {[%clk 0:09:31.8]} 8. Nc3 {[%clk 0:09:36.4]}
8... d5 {[%clk 0:09:31.8]} 9. Qc2 {[%clk 0:09:33.5]} 9... dxc4 {[%clk
0:07:48.4]} 10. e4 {[%clk 0:09:08]} 10... Nbd7 {[%clk 0:07:19.8]} 11. Rad1
{[%clk 0:08:57.7]} 11... b5 {[%clk 0:07:15.2]} 12. Bf4 {[%clk 0:08:23.1]} 12...
Bb7 {[%clk 0:07:11.3]} 13. Rfe1 {[%clk 0:08:09.1]} 13... Re8 {[%clk 0:06:08]}
14. Ne5 {[%clk 0:07:41.2]} 14... Nxe5 {[%clk 0:05:35.3]} 15. Bxe5 {[%clk
0:07:10]} 15... Qb6 {[%clk 0:05:23.7]} 16. Qe2 {[%clk 0:06:37.8]} 16... Rad8
{[%clk 0:04:59.5]} 17. g4 {[%clk 0:06:08.7]} 17... c5 {[%clk 0:03:51.6]} 18.
dxc5 {[%clk 0:05:27]} 18... Qxc5 {[%clk 0:03:23.6]} 19. Bg3 {[%clk 0:05:18]}
19... b4 {[%clk 0:02:23.5]} 20. Na4 {[%clk 0:04:56.5]} 20... Qc6 {[%clk
0:02:12.6]} 21. b3 {[%clk 0:04:13.6]} 21... c3 {[%clk 0:02:13.6]} 22. g5 {[%clk
0:04:13.8]} 22... Nd7 {[%clk 0:00:56.9]} 23. f4 {[%clk 0:03:52.4]} 23... Nc5
{[%clk 0:00:53.1]} 24. Nxc5 {[%clk 0:03:44.3]} 24... Bxc5+ {[%clk 0:00:54.2]}
25. Kh1 {[%clk 0:03:44.3]} 25... Bd4 {[%clk 0:00:35.8]} 26. Qc2 {[%clk
0:03:26.5]} 26... Rd7 {[%clk 0:00:33]} 27. Re2 {[%clk 0:03:08.3]} 27... Red8
{[%clk 0:00:28.8]} 28. f5 {[%clk 0:03:01]} 28... exf5 {[%clk 0:00:28.6]} 29.
exf5 {[%clk 0:02:58.8]} 29... Qb6 {[%clk 0:00:23.4]} 30. Rde1 {[%clk 0:02:54.5]}
30... Bxg2+ {[%clk 0:00:22.7]} 31. Kxg2 {[%clk 0:02:56.1]} 31... Qc6+ {[%clk
0:00:21.4]} 32. Kh3 {[%clk 0:02:53.6]} 32... Bc5 {[%clk 0:00:09.9]} 33. f6
{[%clk 0:02:28]} 33... gxf6 {[%clk 0:00:05.5]} 34. Qf5 {[%clk 0:02:15.7]} 34...
fxg5 {[%clk 0:00:04.8]} 35. Qxg5+ {[%clk 0:02:05.5]} 35... Qg6 {[%clk
0:00:05.8]} 36. Re8+ {[%clk 0:02:04.2]} 36... Rxe8 {[%clk 0:00:07.2]} 37. Rxe8+
{[%clk 0:02:05.2]} 37... Bf8 {[%clk 0:00:09.1]} 38. Qc5 {[%clk 0:01:53.4]} 38...
Qh6+ {[%clk 0:00:07.4]} 39. Kg2 {[%clk 0:01:45.4]} 39... Rd2+ {[%clk 0:00:08.1]}
40. Kg1 {[%clk 0:01:42.9]} 40... Rd1+ {[%clk 0:00:08.4]} 41. Kg2 {[%clk
0:01:40.6]} 41... Qd2+ {[%clk 0:00:08.1]} 42. Bf2 {[%clk 0:01:37.9]} 42... Qd5+
{[%clk 0:00:08.3]} 43. Qxd5 {[%clk 0:01:39.1]} 43... Rxd5 {[%clk 0:00:10.2]} 44.
Rc8 {[%clk 0:01:39.6]} 44... Kg7 {[%clk 0:00:10.5]} 45. Kf3 {[%clk 0:01:37.1]}
45... a5 {[%clk 0:00:10.9]} 46. Ke4 {[%clk 0:01:37.5]} 46... Rd2 {[%clk
0:00:11.3]} 47. Bd4+ {[%clk 0:01:38.4]} 47... f6 {[%clk 0:00:12.7]} 48. Rc7+
{[%clk 0:01:36.9]} 48... Kg6 {[%clk 0:00:13.6]} 49. Rc6 {[%clk 0:01:33.2]} 49...
Bg7 {[%clk 0:00:14.7]} 50. a4 {[%clk 0:01:26.1]} 50... Rb2 {[%clk 0:00:13.7]}
51. Bb6 {[%clk 0:01:24.9]} 51... Rxb3 {[%clk 0:00:14.7]} 52. Bxa5 {[%clk
0:01:26.4]} 52... Kg5 {[%clk 0:00:14.2]} 53. Rc5+ {[%clk 0:01:25.5]} 53... Kg4
{[%clk 0:00:15.6]} 54. Rc7 {[%clk 0:01:23.9]} 54... f5+ {[%clk 0:00:16]} 55. Kd3
{[%clk 0:01:24.7]} 55... Be5 {[%clk 0:00:16.4]} 56. Rxh7 {[%clk 0:01:18.8]}
56... Rb2 {[%clk 0:00:15]} 57. h3+ {[%clk 0:01:18.7]} 57... Kf4 {[%clk
0:00:15.8]} 58. Bb6 {[%clk 0:01:18.1]} 58... Rd2+ {[%clk 0:00:14.8]} 59. Kc4
{[%clk 0:01:17.8]} 59... c2 {[%clk 0:00:16.3]} 60. Kxb4 {[%clk 0:01:09.5]} 60...
c1=Q {[%clk 0:00:16.3]} 61. Rh4+ {[%clk 0:01:07.1]} 61... Kf3 {[%clk 0:00:16.5]}
62. Rc4 {[%clk 0:01:07.5]} 62... Rb2+ {[%clk 0:00:17.5]} 63. Kc5 {[%clk
0:01:07]} 63... Rc2 {[%clk 0:00:17.3]} 0-1